bitfinex-derivatives/quotes_BTCF0:USTF0_20250629
["timestamp","ask_amount","ask_price","bid_price","bid_amount"]
[1751194221158,0.2458973,108190.0,108180.0,0.60093278]
[1751194221663,0.2458973,108190.0,108180.0,0.5456144]
[1751194222357,0.2786973,108190.0,108180.0,0.5456144]
[1751194222861,0.2786973,108190.0,108180.0,1.1068544]
[1751194224660,0.2786973,108190.0,108180.0,0.7460544]
[1751194224865,0.2786973,108190.0,108180.0,1.1068544]
[1751194228562,0.2786973,108190.0,108180.0,0.7460544]
[1751194228768,0.2786973,108190.0,108180.0,1.1068544]
[1751194229067,0.2786973,108190.0,108180.0,0.7460544]
[1751194229269,0.2786973,108190.0,108180.0,1.1068544]
[1751194230965,0.2786973,108190.0,108180.0,1.1381544]
[1751194231770,0.2786973,108190.0,108180.0,0.5769144]
[1751194231971,0.2786973,108190.0,108180.0,1.1381144]
[1751194233572,0.046195,108200.0,108180.0,0.915914]
[1751194233768,0.1847973,108190.0,108180.0,0.915914]
[1751194233963,0.1847973,108190.0,108180.0,1.637514]
[1751194234870,0.1847973,108190.0,108180.0,1.65196146]
[1751194235176,0.18387304,108190.0,108180.0,1.65196146]
[1751194235676,0.33259152,108200.0,108190.0,0.1847973]
[1751194235975,0.33259152,108200.0,108190.0,0.56248242]
[1751194236665,0.42719152,108200.0,108190.0,0.56248242]
[1751194238076,0.42719152,108200.0,108190.0,1.12368282]
[1751194239178,0.42719152,108200.0,108190.0,0.56248282]
[1751194248486,0.42719152,108200.0,108190.0,0.92328282]
[1751194250288,0.42719152,108200.0,108190.0,0.95488282]
[1751194254188,0.42719152,108200.0,108190.0,0.98538282]
[1751194257794,0.39599152,108200.0,108190.0,0.98538282]
[1751194257994,0.36369152,108200.0,108190.0,0.98538282]
[1751194258396,0.36369152,108200.0,108190.0,1.01678282]
[1751194262398,0.33259152,108200.0,108190.0,1.01678282]
[1751194271109,0.33259152,108200.0,108190.0,0.9998977]
[1751194271510,0.33259152,108200.0,108190.0,1.06456274]
[1751194272210,0.33259152,108200.0,108190.0,1.03684915]
[1751194274612,0.33259152,108200.0,108190.0,0.9998977]
[1751194275011,0.33259152,108200.0,108190.0,0.2782977]
[1751194275210,0.33259152,108200.0,108190.0,0.9998977]
[1751194277313,0.33259152,108200.0,108190.0,1.01662369]
[1751194277914,0.28639282,108200.0,108190.0,1.01662369]
[1751194278616,0.28639282,108200.0,108190.0,1.57766369]
[1751194281015,0.28639282,108200.0,108190.0,0.85606369]
[1751194281217,0.28639282,108200.0,108190.0,1.57766369]
[1751194291025,0.28639282,108200.0,108190.0,0.85606369]
[1751194291224,0.28639282,108200.0,108190.0,1.57766369]
[1751194293730,0.28639282,108200.0,108190.0,1.01662369]
[1751194293924,0.28639282,108200.0,108190.0,1.57766369]
[1751194294530,0.28639282,108200.0,108190.0,1.61461514]
[1751194295131,0.28639282,108200.0,108190.0,0.89301514]
[1751194295329,0.28639282,108200.0,108190.0,1.61461514]
[1751194300039,0.28639282,108200.0,108190.0,0.89301514]
[1751194300238,0.28639282,108200.0,108190.0,1.61461514]
[1751194304637,0.28639282,108200.0,108190.0,0.89301514]
[1751194304936,0.28639282,108200.0,108190.0,1.61461514]
[1751194305740,0.28639282,108200.0,108190.0,1.05357514]
[1751194306039,0.28639282,108200.0,108190.0,0.33197514]
[1751194306240,0.28639282,108200.0,108190.0,1.05357514]
[1751194308647,0.28639282,108200.0,108190.0,1.01662369]
[1751194312051,0.28639282,108200.0,108190.0,0.29502369]
[1751194312350,0.41587282,108200.0,108190.0,1.01662369]
[1751194316955,0.41587282,108200.0,108190.0,0.29502369]
[1751194317150,0.41587282,108200.0,108190.0,1.01662369]
[1751194319654,0.41587282,108200.0,108190.0,0.29502369]
[1751194319857,0.41587282,108200.0,108190.0,1.01662369]
[1751194320761,0.44687282,108200.0,108190.0,1.01662369]
[1751194321060,0.44687282,108200.0,108190.0,0.76992599]
[1751194321455,0.47957282,108200.0,108190.0,0.76992599]
[1751194325468,0.47957282,108200.0,108190.0,0.95472369]
[1751194325965,0.47957282,108200.0,108190.0,0.98742369]
[1751194326866,0.44687282,108200.0,108190.0,0.98742369]
[1751194329969,0.28639282,108200.0,108190.0,0.98742369]
[1751194330268,0.41587282,108200.0,108190.0,1.01842369]
[1751194331865,0.28639282,108200.0,108190.0,1.01842369]
[1751194332071,0.19399912,108200.0,108190.0,1.01842369]
[1751194332370,0.19399912,108200.0,108190.0,0.83362599]
[1751194338477,0.19399912,108200.0,108190.0,0.8169]
[1751194340275,0.19399912,108200.0,108190.0,0.0953]
[1751194340474,0.19399912,108200.0,108190.0,0.8169]
[1751194341177,0.19399912,108200.0,108190.0,0.0953]
[1751194341375,0.19399912,108200.0,108190.0,0.8169]
[1751194351290,0.19399912,108200.0,108190.0,0.0953]
[1751194351489,0.19399912,108200.0,108190.0,0.8169]
[1751194353590,0.19399912,108200.0,108190.0,0.0953]
[1751194353893,0.19399912,108200.0,108190.0,0.8169]
[1751194359297,0.19399912,108200.0,108190.0,0.0953]
[1751194359501,0.19399912,108200.0,108190.0,0.8169]
[1751194363299,0.19399912,108200.0,108190.0,0.0953]
[1751194363504,0.19399912,108200.0,108190.0,0.8169]
[1751194367201,0.19399912,108200.0,108190.0,0.0953]
[1751194367404,0.19399912,108200.0,108190.0,0.8169]
[1751194369599,0.19399912,108200.0,108190.0,0.0953]
[1751194369801,0.19399912,108200.0,108190.0,0.8169]
[1751194371202,0.19399912,108200.0,108190.0,0.0953]
[1751194371403,0.19399912,108200.0,108190.0,0.8169]
[1751194374306,0.19399912,108200.0,108190.0,0.85385691]
[1751194381107,0.19399912,108200.0,108190.0,0.13225691]
[1751194381307,0.19399912,108200.0,108190.0,0.85385691]
[1751194383013,0.19399912,108200.0,108190.0,1.03865481]
[1751194383315,0.19399912,108200.0,108190.0,0.31705481]
[1751194383616,0.19399912,108200.0,108190.0,1.03865481]
[1751194384419,0.19399912,108200.0,108190.0,1.0016979]
[1751194384917,0.19399912,108200.0,108190.0,1.03865481]
[1751194385914,0.19399912,108200.0,108190.0,1.0016979]
[1751194386131,0.1847948,108200.0,108190.0,1.03865481]
[1751194393636,0.1847948,108200.0,108190.0,1.09407485]
[1751194396839,0.1847948,108200.0,108190.0,1.05310115]
[1751194397539,0.1847948,108200.0,108190.0,1.09407485]
[1751194398238,0.3233623,108210.0,108200.0,0.1847808]
[1751194398436,0.3233623,108210.0,108200.0,1.2001408]
[1751194399638,0.2309723,108210.0,108200.0,1.2001408]
[1751194400135,0.2044551,108230.0,108210.0,0.1847637]
[1751194400336,0.5499047,108230.0,108220.0,0.5455466]
[1751194400641,0.5037186,108230.0,108220.0,0.9364466]
[1751194401044,0.4388186,108230.0,108220.0,1.4969666]
[1751194401543,0.4388186,108230.0,108220.0,1.5291666]
[1751194401744,0.4388186,108230.0,108220.0,1.5605666]
[1751194402837,0.3612338,108230.0,108220.0,1.5605666]
[1751194403234,0.1857296,108230.0,108220.0,1.58588869]
[1751194403434,0.001,108230.0,108220.0,1.58588869]
[1751194403944,0.001,108230.0,108220.0,1.66063509]
[1751194405444,0.001,108230.0,108220.0,1.697592]
[1751194406745,0.00157416,108240.0,108230.0,0.20133728]
[1751194406935,0.00157416,108240.0,108230.0,0.75477728]
[1751194407137,0.00157416,108240.0,108230.0,0.93956128]
[1751194407341,0.01459135,108250.0,108240.0,0.1847125]
[1751194407543,0.01459135,108250.0,108240.0,1.5297525]
[1751194409950,0.01459135,108250.0,108240.0,1.7145205]
[1751194410655,0.01459135,108250.0,108240.0,1.7465205]
[1751194417149,0.01459135,108250.0,108240.0,1.1860805]
[1751194417455,0.01459135,108250.0,108240.0,1.6907125]
[1751194418553,0.01459135,108250.0,108240.0,1.0013125]
[1751194418753,0.23228685,108250.0,108240.0,0.9063125]
[1751194419056,0.26318685,108250.0,108240.0,1.4665125]
[1751194420057,0.26318685,108250.0,108240.0,0.9063125]
[1751194420257,0.26318685,108250.0,108240.0,1.4665925]
[1751194420650,0.26318685,108250.0,108240.0,1.5321925]
[1751194420855,0.23228685,108250.0,108240.0,1.5321925]
[1751194421057,0.01459135,108250.0,108240.0,1.5645925]
[1751194424056,0.01459135,108250.0,108240.0,1.60154941]
[1751194424954,0.00257416,108260.0,108250.0,0.1846955]
[1751194425159,0.00257416,108260.0,108250.0,0.75477215]
[1751194428959,0.00157416,108280.0,108270.0,0.1846613]
[1751194429155,0.00157416,108280.0,108270.0,1.4680213]
[1751194429360,0.00157416,108280.0,108270.0,1.5323213]
[1751194429654,0.001,108290.0,108280.0,0.1846443]
[1751194429964,0.001,108290.0,108280.0,0.66924579]
[1751194430265,0.001,108290.0,108280.0,0.67033023]
[1751194430462,0.001,108290.0,108280.0,0.74585105]
[1751194430964,0.001,108290.0,108280.0,0.76028554]
[1751194432160,0.001,108290.0,108280.0,0.73428405]
[1751194433061,0.001,108290.0,108280.0,0.75680647]
[1751194433367,0.001,108290.0,108280.0,0.71984956]
[1751194434065,0.001,108290.0,108280.0,0.73428272]
[1751194434467,0.001,108290.0,108280.0,0.71984956]
[1751194435063,0.001,108290.0,108280.0,1.31432956]
[1751194435273,0.2489272,108290.0,108280.0,0.43740526]
[1751194435462,0.2489272,108290.0,108280.0,0.62204956]
[1751194435766,0.2489272,108290.0,108280.0,0.43740526]
[1751194436467,0.2489272,108290.0,108280.0,0.31198444]
[1751194436468,0.6836232,108290.0,108280.0,0.31198444]
[1751194436666,0.6836232,108290.0,108280.0,0.18658444]
[1751194436863,0.6836232,108290.0,108280.0,0.17498444]
[1751194437562,0.6836232,108290.0,108280.0,0.16098444]
[1751194439063,0.6521232,108290.0,108280.0,0.16098444]
[1751194439369,0.6521232,108290.0,108280.0,0.00108444]
[1751194439669,0.75885755,108290.0,108280.0,0.00108444]
[1751194440564,1.11965755,108290.0,108280.0,0.00108444]
[1751194440868,0.1846613,108270.0,108260.0,0.5454647]
[1751194441265,0.1846613,108270.0,108260.0,0.3608]
[1751194441266,0.1847613,108270.0,108260.0,0.3608]
[1751194442165,0.3694893,108270.0,108260.0,0.3618]
[1751194442364,0.3694893,108270.0,108260.0,0.3628]
[1751194443368,0.3694893,108270.0,108260.0,0.5474784]
[1751194443873,0.3694893,108270.0,108260.0,0.3628]
[1751194444168,0.1846613,108270.0,108260.0,0.5804784]
[1751194444369,0.1846613,108270.0,108260.0,0.4285]
[1751194444668,0.1846613,108270.0,108260.0,0.6131784]
[1751194445966,0.1846613,108270.0,108260.0,0.4285]
[1751194448164,0.20719488,108270.0,108260.0,0.4285]
[1751194450974,0.20729488,108270.0,108260.0,0.4285]
[1751194452167,0.20729488,108270.0,108260.0,0.3628]
[1751194454783,0.39202288,108270.0,108260.0,0.3628]
[1751194455978,0.39202288,108270.0,108260.0,0.002]
[1751194456182,1.10325567,108270.0,108260.0,0.002]
[1751194457480,1.17615289,108270.0,108260.0,0.001]
[1751194457671,0.1846784,108260.0,108250.0,0.4548]
[1751194457877,0.8785584,108260.0,108250.0,0.4548]
[1751194458082,1.0633104,108260.0,108250.0,0.4548]
[1751194458784,0.8785584,108260.0,108250.0,0.4548]
[1751194459082,0.8785584,108260.0,108250.0,0.4568]
[1751194464879,0.1846784,108260.0,108250.0,0.4568]
[1751194465079,0.8787984,108260.0,108250.0,0.4568]
[1751194466886,0.8787984,108260.0,108250.0,0.6414955]
[1751194467085,0.8787984,108260.0,108250.0,0.4568]
[1751194467280,0.8787984,108260.0,108250.0,0.6414955]
[1751194467586,0.8787984,108260.0,108250.0,0.4568]
[1751194469593,0.8785584,108260.0,108250.0,0.4568]
[1751194470090,0.8785584,108260.0,108250.0,0.6414954]
[1751194470290,0.1846784,108260.0,108250.0,0.6414954]
[1751194470591,0.8783984,108260.0,108250.0,0.6414954]
[1751194470789,0.8784784,108260.0,108250.0,0.6414954]
[1751194473889,0.8784784,108260.0,108250.0,0.4568]
[1751194474593,0.8784784,108260.0,108250.0,0.6414955]
[1751194474894,0.8784784,108260.0,108250.0,0.65851586]
[1751194475092,0.8784784,108260.0,108250.0,0.47382036]
[1751194475283,0.8784784,108260.0,108250.0,0.65851586]
[1751194476093,0.8784784,108260.0,108250.0,1.01931586]
[1751194476788,0.8784784,108260.0,108250.0,0.83462036]
[1751194483799,0.8784784,108260.0,108250.0,0.8176]
[1751194493017,0.8784784,108260.0,108250.0,0.096]
[1751194493211,0.8784784,108260.0,108250.0,0.4568]
[1751194500226,0.8772784,108260.0,108250.0,0.4568]
[1751194505534,0.3154384,108260.0,108250.0,0.6414955]
[1751194505731,0.8769984,108260.0,108250.0,0.4568]
[1751194512937,1.40852804,108260.0,108250.0,0.096]
[1751194513137,1.40862804,108260.0,108250.0,0.096]
[1751194514139,1.33465958,108260.0,108250.0,0.096]
[1751194517129,0.97375958,108260.0,108250.0,0.4568]
[1751194519349,0.8759584,108260.0,108250.0,0.4568]
[1751194536352,0.69128,108260.0,108240.0,0.3608]
[1751194536556,0.69128,108260.0,108240.0,0.4547]
[1751194536557,0.1846955,108250.0,108240.0,0.4547]
[1751194537858,0.1846955,108250.0,108240.0,0.4557]
[1751194539457,0.1846955,108250.0,108240.0,0.4587]
[1751194545263,0.1846955,108250.0,108240.0,0.0979]
[1751194545463,0.1846955,108250.0,108240.0,0.4587]
[1751194552967,0.1846955,108250.0,108240.0,0.0979]
[1751194553167,0.1846955,108250.0,108240.0,0.4587]
[1751194555367,0.25866396,108250.0,108240.0,0.4587]
[1751194555969,0.25866396,108250.0,108240.0,0.0979]
[1751194556167,0.25866396,108250.0,108240.0,0.4587]
[1751194558168,0.25866396,108250.0,108240.0,0.0979]
[1751194558361,0.25866396,108250.0,108240.0,0.4587]
[1751194560264,0.28229123,108250.0,108240.0,0.3958]
[1751194561071,0.28229123,108250.0,108240.0,0.4286]
[1751194564073,0.28229123,108250.0,108240.0,0.004]
[1751194564374,0.64309123,108250.0,108240.0,0.004]
[1751194564573,0.64309123,108250.0,108240.0,0.0692]
[1751194575480,0.71705969,108250.0,108240.0,0.0692]
[1751194579381,0.64309123,108250.0,108240.0,0.0692]
[1751194584597,0.71705969,108250.0,108240.0,0.0692]
[1751194586594,0.1847125,108240.0,108230.0,0.0328]
[1751194586799,1.2357925,108240.0,108230.0,0.0969]
[1751194586997,1.34232085,108240.0,108230.0,0.0969]
[1751194587792,1.34232085,108240.0,108230.0,0.0999]
[1751194588193,1.34232085,108240.0,108230.0,0.1019]
[1751194588700,1.41628931,108240.0,108230.0,0.1019]
[1751194589301,1.34232085,108240.0,108230.0,0.1019]
[1751194589600,1.41628931,108240.0,108230.0,0.1019]
[1751194590098,0.1847808,108200.0,108190.0,0.39868117]
[1751194590302,0.8749408,108200.0,108190.0,0.39242426]
[1751194590704,0.89227523,108200.0,108190.0,0.39242426]
[1751194591299,0.89227523,108200.0,108190.0,0.39442426]
[1751194591604,0.89227523,108200.0,108190.0,0.45782426]
[1751194593106,0.89227523,108200.0,108190.0,0.45582426]
[1751194593307,0.89227523,108200.0,108190.0,0.45682426]
[1751194603013,0.89227523,108200.0,108190.0,0.09602426]
[1751194603203,0.89227523,108200.0,108190.0,0.45682426]
[1751194605013,0.89227523,108200.0,108190.0,0.64162216]
[1751194605014,0.89239523,108200.0,108190.0,0.64162216]
[1751194605213,0.89239523,108200.0,108190.0,0.45682426]
[1751194605411,0.89239523,108200.0,108190.0,0.64162216]
[1751194606215,0.20211523,108200.0,108190.0,0.45682426]
[1751194606413,0.8750608,108200.0,108190.0,0.45682426]
[1751194615318,0.8750608,108200.0,108190.0,0.48443859]
[1751194617618,0.8750608,108200.0,108190.0,0.12363859]
[1751194617813,0.8750608,108200.0,108190.0,0.84523859]
[1751194619619,0.8750608,108200.0,108190.0,0.12363859]
[1751194619822,0.8750608,108200.0,108190.0,0.84523859]
[1751194620211,0.8750608,108200.0,108190.0,0.8821955]
[1751194621016,0.8750608,108200.0,108190.0,0.88230197]
[1751194622218,0.8749408,108200.0,108190.0,0.88230197]
[1751194623424,0.1847808,108200.0,108190.0,1.06709997]
[1751194623922,0.1847808,108200.0,108190.0,1.4182362]
[1751194624723,0.1847808,108200.0,108190.0,1.36281616]
[1751194625724,0.1847808,108200.0,108190.0,1.37726277]
[1751194626520,0.277168,108210.0,108200.0,0.1847809]
[1751194626722,0.277168,108210.0,108200.0,0.57329783]
[1751194627024,0.277168,108210.0,108200.0,0.5455809]
[1751194627224,0.277168,108210.0,108200.0,0.6093809]
[1751194627725,0.277168,108210.0,108200.0,0.70175785]
[1751194628420,0.277168,108210.0,108200.0,0.64633781]
[1751194629325,0.277168,108210.0,108200.0,0.70175785]
[1751194632630,0.277168,108210.0,108200.0,0.70275785]
[1751194633427,0.277168,108210.0,108200.0,0.64733781]
[1751194634028,0.277168,108210.0,108200.0,0.64933781]
[1751194637735,0.277168,108210.0,108200.0,1.01013781]
[1751194639739,0.277168,108210.0,108200.0,1.02575616]
[1751194642436,0.277168,108210.0,108200.0,1.01013781]
[1751194644042,0.277168,108210.0,108200.0,0.28853781]
[1751194644337,0.277168,108210.0,108200.0,0.9731809]
[1751194648440,0.277168,108210.0,108200.0,1.01013781]
[1751194656253,0.277168,108210.0,108200.0,1.02458314]
[1751194656653,0.277168,108210.0,108200.0,0.98762623]
[1751194663256,0.2309734,108210.0,108200.0,0.98762623]
[1751194666058,0.2309734,108210.0,108200.0,0.26602623]
[1751194666357,0.2309734,108210.0,108200.0,0.98762623]
[1751194670161,0.2309734,108210.0,108200.0,0.26602623]
[1751194670356,0.2309734,108210.0,108200.0,0.98762623]
[1751194670557,0.2309734,108210.0,108200.0,1.01862623]
[1751194672662,0.2309734,108210.0,108200.0,0.29702623]
[1751194672862,0.2309734,108210.0,108200.0,1.01862623]
[1751194674164,0.2309734,108210.0,108200.0,0.29702623]
[1751194674363,0.2309734,108210.0,108200.0,1.01862623]
[1751194676566,0.1847554,108220.0,108210.0,0.1847638]
[1751194676769,0.1847554,108220.0,108210.0,1.22810807]
[1751194677066,0.4525775,108230.0,108220.0,0.1847467]
[1751194677366,0.4525775,108230.0,108220.0,0.6359467]
[1751194678567,0.4535775,108230.0,108220.0,0.6359467]
[1751194681169,0.4525775,108230.0,108220.0,0.6369467]
[1751194682269,0.4525775,108230.0,108220.0,0.6389467]
[1751194685962,0.3602061,108230.0,108220.0,0.6389467]
[1751194686168,0.3140234,108230.0,108220.0,0.6389467]
[1751194687977,0.3140234,108230.0,108220.0,0.65522351]
[1751194688276,0.3140234,108230.0,108220.0,0.6389467]
[1751194698979,0.3140234,108230.0,108220.0,0.2781467]
[1751194699284,0.3140234,108230.0,108220.0,0.9997467]
[1751194704882,0.3140234,108230.0,108220.0,0.2781467]
[1751194705082,0.3140234,108230.0,108220.0,0.9997467]
[1751194705485,0.3140234,108230.0,108220.0,1.03669489]
[1751194705685,0.3140234,108230.0,108220.0,1.02745784]
[1751194710385,0.1847434,108230.0,108220.0,1.02745784]
[1751194715694,0.1847434,108230.0,108220.0,1.0921532]
[1751194720596,0.1847434,108230.0,108220.0,0.3705532]
[1751194720899,0.1847434,108230.0,108220.0,1.03669489]
[1751194721196,0.1847434,108230.0,108220.0,0.3705532]
[1751194721398,0.1847434,108230.0,108220.0,1.0921532]
[1751194725697,0.1847434,108230.0,108220.0,1.02747301]
[1751194725996,0.1847434,108230.0,108220.0,0.30587301]
[1751194726197,0.1847434,108230.0,108220.0,1.02747301]
[1751194727600,0.1847434,108230.0,108220.0,0.30587301]
[1751194727898,0.1847434,108230.0,108220.0,1.02747301]
[1751194730089,0.1847434,108230.0,108220.0,0.30587301]
[1751194730289,0.1847434,108230.0,108220.0,1.02747301]
[1751194735601,0.1847434,108230.0,108220.0,1.0921532]
[1751194751605,0.1847434,108230.0,108220.0,1.03669489]
[1751194752512,0.1847434,108230.0,108220.0,1.0921532]
[1751194752705,0.3232475,108250.0,108240.0,0.1846962]
[1751194752905,0.33755219,108250.0,108240.0,0.9062962]
[1751194753208,0.33755219,108250.0,108240.0,1.0000962]
[1751194753408,0.33755219,108250.0,108240.0,1.07569807]
[1751194753706,0.33755219,108250.0,108240.0,0.78627802]
[1751194754009,0.1847133,108240.0,108230.0,0.44235989]
[1751194754203,0.4107933,108240.0,108230.0,0.62709029]
[1751194754403,0.4107933,108240.0,108230.0,0.44235989]
[1751194754710,1.2559902,108240.0,108230.0,0.4054117]
[1751194755605,1.2559902,108240.0,108230.0,0.38852983]
[1751194756606,1.0712062,108240.0,108230.0,0.38852983]
[1751194756910,1.2559902,108240.0,108230.0,0.38852983]
[1751194757707,1.0712062,108240.0,108230.0,0.38852983]
[1751194758509,1.5059902,108240.0,108230.0,0.38852983]
[1751194759012,1.5059902,108240.0,108230.0,0.3608]
[1751194759211,1.2559902,108240.0,108230.0,0.3608]
[1751194760615,1.0712062,108240.0,108230.0,0.3608]
[1751194762018,0.1847303,108230.0,108220.0,0.66937613]
[1751194762219,0.1847303,108230.0,108220.0,1.03017613]
[1751194763720,0.1847303,108230.0,108220.0,1.03117613]
[1751194764519,0.1847303,108230.0,108220.0,1.03317613]
[1751194765520,0.1847303,108230.0,108220.0,1.0054463]
[1751194765722,0.7443703,108230.0,108220.0,1.0054463]
[1751194766423,0.7443703,108230.0,108220.0,0.8207]
[1751194771130,0.8083703,108230.0,108220.0,0.8207]
[1751194771636,0.8083703,108230.0,108220.0,0.7246]
[1751194771827,0.8410703,108230.0,108220.0,0.7246]
[1751194773029,0.7443703,108230.0,108220.0,0.7246]
[1751194773330,0.7443703,108230.0,108220.0,0.816]
[1751194774831,0.7443703,108230.0,108220.0,1.0007479]
[1751194775230,0.7443703,108230.0,108220.0,0.816]
[1751194779632,0.7443703,108230.0,108220.0,1.0007479]
[1751194780131,0.7443703,108230.0,108220.0,0.2791479]
[1751194780333,0.7443703,108230.0,108220.0,1.0007479]
[1751194785639,0.7443703,108230.0,108220.0,1.02847773]
[1751194788242,0.8730903,108230.0,108220.0,1.06542592]
[1751194788630,0.3135303,108230.0,108220.0,1.06542592]
[1751194789837,0.1847303,108230.0,108220.0,1.06542592]
[1751194790039,0.3135303,108230.0,108220.0,1.06542592]
[1751194796149,0.3135303,108230.0,108220.0,1.07881533]
[1751194796352,0.3135303,108230.0,108220.0,1.06542592]
[1751194797049,0.3135303,108230.0,108220.0,1.02847773]
[1751194800552,0.3135303,108230.0,108220.0,1.60163208]
[1751194800955,0.3135303,108230.0,108220.0,1.63858027]
[1751194802562,0.7442047,108240.0,108230.0,0.1847308]
[1751194802563,0.323269,108240.0,108230.0,0.1847308]
[1751194802867,0.323269,108240.0,108230.0,0.67083968]
[1751194806458,0.323269,108240.0,108230.0,0.67383968]
[1751194807060,0.323269,108240.0,108230.0,0.71078787]
[1751194817174,0.323269,108240.0,108230.0,1.07158787]
[1751194824179,0.323269,108240.0,108230.0,1.04387899]
[1751194826180,0.323269,108240.0,108230.0,1.06031661]
[1751194827081,0.323269,108240.0,108230.0,1.11577492]
[1751194834188,0.7966556,108250.0,108230.0,0.93104412]
[1751194834389,0.7966556,108250.0,108240.0,0.42140263]
[1751194834688,0.7966556,108250.0,108240.0,0.45190263]
[1751194834887,0.7966556,108250.0,108240.0,0.48360263]
[1751194835289,0.7015556,108250.0,108240.0,0.48360263]
[1751194836991,0.0135156,108250.0,108240.0,0.48360263]
[1751194837192,0.0135156,108250.0,108240.0,0.4559]
[1751194837193,0.68784,108250.0,108240.0,0.4559]
[1751194838891,0.68784,108250.0,108240.0,0.0951]
[1751194839091,0.68784,108250.0,108240.0,0.8167]
[1751194839489,0.70076684,108250.0,108240.0,0.8167]
[1751194839897,0.70076684,108250.0,108240.0,0.0951]
[1751194840089,0.70076684,108250.0,108240.0,0.8167]
[1751194846297,0.70076684,108250.0,108240.0,0.0951]
[1751194846596,0.70076684,108250.0,108240.0,0.8167]
[1751194847191,0.70076684,108250.0,108240.0,0.84440263]
[1751194848501,0.70076684,108250.0,108240.0,0.88135082]
[1751194850302,0.70076684,108250.0,108240.0,0.15975082]
[1751194850496,0.70076684,108250.0,108240.0,0.88135082]
[1751194851905,0.79556684,108250.0,108240.0,0.88135082]
[1751194852100,0.79556684,108250.0,108240.0,0.15975082]
[1751194852299,0.79556684,108250.0,108240.0,0.88135082]
[1751194855999,0.76286684,108250.0,108240.0,0.88135082]
[1751194856504,0.70076684,108250.0,108240.0,0.88135082]
[1751194857206,0.14156684,108250.0,108240.0,0.88135082]
[1751194857405,0.70064684,108250.0,108240.0,0.88135082]
[1751194859306,0.70064684,108250.0,108240.0,0.15975082]
[1751194859508,0.70064684,108250.0,108240.0,0.88135082]
[1751194859901,0.70064684,108250.0,108240.0,0.15975082]
[1751194860102,0.70064684,108250.0,108240.0,0.88135082]
[1751194862307,0.70064684,108250.0,108240.0,0.15975082]
[1751194862502,0.70064684,108250.0,108240.0,0.88135082]
[1751194865311,0.70064684,108250.0,108240.0,0.15975082]
[1751194865510,0.70064684,108250.0,108240.0,0.88135082]
[1751194867616,0.70064684,108250.0,108240.0,0.15975082]
[1751194867806,0.70064684,108250.0,108240.0,0.88135082]
[1751194870612,0.70044684,108250.0,108240.0,0.88135082]
[1751194871315,0.70044684,108250.0,108240.0,0.15975082]
[1751194871514,0.70044684,108250.0,108240.0,0.88135082]
[1751194873311,0.70044684,108250.0,108240.0,0.15975082]
[1751194873507,0.70044684,108250.0,108240.0,0.88135082]
[1751194875221,0.70044684,108250.0,108240.0,0.15975082]
[1751194875416,0.70044684,108250.0,108240.0,0.88135082]
[1751194877119,0.70044684,108250.0,108240.0,0.8167]
[1751194880627,0.70044684,108250.0,108240.0,0.0951]
[1751194880920,0.70044684,108250.0,108240.0,0.8167]
[1751194887125,0.70044684,108250.0,108240.0,0.88135082]
[1751194888319,0.70044684,108250.0,108240.0,0.15975082]
[1751194888526,0.70044684,108250.0,108240.0,0.88135082]
[1751194891028,0.01292684,108250.0,108240.0,0.88135082]
[1751194891229,0.0943,108260.0,108240.0,0.88135082]
[1751194891430,0.0943,108260.0,108250.0,0.3608]
[1751194891728,0.7936184,108260.0,108250.0,0.3608]
[1751194892429,0.7946184,108260.0,108250.0,0.3608]
[1751194893624,0.7946184,108260.0,108240.0,0.15975082]
[1751194893823,0.7946184,108260.0,108250.0,0.3608]
[1751194894630,0.7966184,108260.0,108250.0,0.3608]
[1751194895832,2.2966184,108260.0,108250.0,0.3608]
[1751194897131,2.2956184,108260.0,108250.0,0.3608]
[1751194897331,2.2966184,108260.0,108250.0,0.3608]
[1751194899032,2.2966184,108260.0,108250.0,0.4243]
[1751194899633,2.2966184,108260.0,108250.0,0.0635]
[1751194899934,1.7377784,108260.0,108250.0,0.4243]
[1751194900122,2.2965784,108260.0,108250.0,0.4243]
[1751194900632,2.2032784,108260.0,108250.0,0.4243]
[1751194900834,2.2032784,108260.0,108250.0,0.4575]
[1751194901030,2.2032784,108260.0,108250.0,0.0967]
[1751194901335,2.2032784,108260.0,108250.0,0.4575]
[1751194903632,2.2032784,108260.0,108250.0,0.0967]
[1751194903834,2.2032784,108260.0,108250.0,0.4575]
[1751194904034,2.2032784,108260.0,108250.0,0.0967]
[1751194904231,2.2032784,108260.0,108250.0,0.4575]
[1751194905537,0.0159584,108260.0,108250.0,0.47445044]
[1751194905836,0.004,108260.0,108250.0,0.47445044]
[1751194906034,0.6912,108260.0,108250.0,0.47445044]
[1751194906233,0.6912,108260.0,108250.0,0.50215307]
[1751194906433,0.6912,108260.0,108250.0,0.47445044]
[1751194906930,0.70002635,108260.0,108250.0,0.47445044]
[1751194907126,0.001,108260.0,108250.0,0.47445044]
[1751194907330,0.6882,108260.0,108250.0,0.47445044]
[1751194908732,0.001,108260.0,108250.0,0.47445044]
[1751194908938,0.001,108260.0,108250.0,0.50215307]
[1751194910527,0.001,108260.0,108250.0,0.53910126]
[1751194913443,0.001,108260.0,108250.0,0.53901788]
[1751194915344,0.001,108260.0,108250.0,0.89981788]
[1751194915642,0.029,108260.0,108250.0,0.89981788]
[1751194917146,0.029,108260.0,108250.0,0.87219863]
[1751194917346,0.029,108260.0,108250.0,0.89980131]
[1751194920951,0.029,108260.0,108250.0,0.17820131]
[1751194921151,0.029,108260.0,108250.0,0.89980131]
[1751194923267,0.029,108260.0,108250.0,1.45836131]
[1751194927062,0.029,108260.0,108250.0,1.42141312]
[1751194935267,0.029,108260.0,108250.0,1.45836131]
[1751194935759,0.029,108260.0,108250.0,1.42141312]
[1751194935965,0.029,108260.0,108250.0,1.45836131]
[1751194937068,0.029,108260.0,108250.0,1.44926875]
[1751194939567,0.029,108260.0,108250.0,0.72766875]
[1751194939775,0.029,108260.0,108250.0,1.44926875]
[1751194944573,0.029,108260.0,108250.0,0.89070875]
[1751194944769,0.029,108260.0,108250.0,0.79400875]
[1751194944962,0.124,108260.0,108250.0,0.79400875]
[1751194945163,0.124,108260.0,108250.0,0.81394819]
[1751194945364,0.124,108260.0,108250.0,0.75848988]
[1751194945571,0.124,108260.0,108250.0,0.78615722]
[1751194950076,0.124,108260.0,108250.0,0.74926734]
[1751194954381,0.124,108260.0,108250.0,0.38846734]
[1751194957581,0.124,108260.0,108250.0,0.3608]
[1751194958683,0.126,108260.0,108250.0,0.3608]
[1751194959485,0.127,108260.0,108250.0,0.3608]
[1751194959987,0.4878,108260.0,108230.0,0.45236734]
[1751194960185,0.19154,108250.0,108240.0,0.3608]
[1751194961787,0.19154,108250.0,108240.0,0.4219]